fUSD/lending_fUSD_20260404
["ID","MTS","AMOUNT","RATE_DAILY","PERIOD"]
[419666034,1775266233922,-4086.9963,0.00012602,2]
[419666035,1775266233933,-988.36539851,0.00012628,2]
[419666036,1775266233943,-50599.25,0.00012702,2]
[419666037,1775266233953,-1230.17,0.00012732,2]
[419666038,1775266233963,-163.46,0.00012747,2]
[419666039,1775266233974,-25942.05916291,0.00012877,2]
[419666040,1775266233984,-1600.0,0.00012904,2]
[419666041,1775266233996,-250.0,0.00013,2]
[419666042,1775266234006,-500.0,0.00013096,2]
[419666043,1775266234016,-516.0,0.00013111,2]
[419666044,1775266234026,-500.0,0.000132,2]
[419666045,1775266234037,-25942.05916291,0.00013252,2]
[419666046,1775266234047,-163.46,0.00013354,2]
[419666047,1775266234058,-180.0,0.00013365,2]
[419666048,1775266234068,-2351.0,0.00013394,2]
[419666049,1775266234078,-433.0,0.00013528,2]
[419666050,1775266234089,-25942.05916291,0.00013626,2]
[419666051,1775266234099,-500.0,0.00013698,2]
[419666052,1775266234109,-500.0,0.00013698,2]
[419666053,1775266234120,-500.0,0.00013698,2]
[419666054,1775266234131,-500.0,0.00013698,2]
[419666055,1775266234143,-500.0,0.00013698,2]
[419666056,1775266234153,-500.0,0.00013698,2]
[419666057,1775266234163,-500.0,0.00013698,2]
[419666058,1775266234173,-500.0,0.00013698,2]
[419666059,1775266234183,-500.0,0.00013698,2]
[419666060,1775266234194,-500.0,0.00013698,2]
[419666061,1775266234206,-359.10439347,0.00013698,2]
[419666062,1775266234216,-5489.742,0.0001375,2]
[419666063,1775266234227,-2500.0,0.00013751,2]
[419666064,1775266234237,-6784.29599932,0.00013761,2]
[419666065,1775266234249,-2436.5629,0.0001385,2]
[419666066,1775266234259,-8545.70660444,0.00013861,2]
[419666067,1775266234271,-163.46,0.00013961,2]
[419666068,1775266234281,-25942.05916291,0.00014001,2]
[419666069,1775266234292,-8545.70660444,0.00014085,2]
[419666070,1775266234301,-8545.70660444,0.00014309,2]
[419666071,1775266234311,-1600.0,0.00014338,2]
[419666072,1775266234320,-25942.05916291,0.00014376,2]
[419666073,1775266234330,-150.0,0.000144,2]
[419666074,1775266234340,-150.0,0.000144,2]
[419666075,1775266234350,-150.0,0.000144,2]
[419666076,1775266234360,-150.19757992,0.000144,2]
[419666077,1775266234370,-150.0,0.000144,2]
[419666078,1775266234379,-150.0,0.000144,2]
[419666079,1775266234388,-150.0,0.000144,2]
[419666080,1775266234398,-150.0,0.000144,2]
[419666081,1775266234408,-150.0,0.000144,2]
[419666082,1775266234417,-150.0,0.000144,2]
[419666083,1775266234426,-150.0,0.000144,2]
[419666084,1775266234435,-150.0,0.000144,2]
[419666085,1775266234445,-150.0,0.000144,2]
[419666086,1775266234455,-150.0,0.000145,2]
[419666087,1775266234464,-150.0,0.00014514,2]
[419666088,1775266234474,-8545.70660444,0.00014532,2]
[419666089,1775266234483,-150.0,0.00014533,2]
[419666090,1775266234493,-163.46,0.00014568,2]
[419666091,1775266234513,-150.0,0.000146,2]
[419666092,1775266234523,-300.0,0.000146,5]
[419666093,1775266234533,-250.0,0.00014624,2]
[419666094,1775266234543,-150.0,0.00014629,2]
[419666095,1775266234553,-150.0,0.00014629,2]
[419666096,1775266234563,-150.0,0.00014667,2]
[419666097,1775266234572,-150.0,0.000147,2]
[419666098,1775266234582,-600.0,0.000147,5]
[419666099,1775266234592,-3292.0,0.00014733,2]
[419666100,1775266234601,-150.0,0.00014743,2]
[419666101,1775266234611,-8545.70660444,0.00014756,2]
[419666102,1775266234620,-171.0,0.00014784,2]
[419666103,1775266234630,-150.0,0.000148,2]
[419666104,1775266234639,-150.0,0.000148,2]
[419666105,1775266234649,-900.0,0.000148,5]
[419666106,1775266234659,-150.0,0.00014857,2]
[419666107,1775266234669,-150.0,0.00014857,2]
[419666108,1775266234679,-150.0,0.000149,2]
[419666109,1775266234689,-1200.0,0.000149,5]
[419666110,1775266234699,-166.66,0.00014908,2]
[419666111,1775266234708,-150.0,0.00014933,2]
[419666112,1775266234718,-194.761681,0.00014938,2]
[419666113,1775266234728,-150.0,0.00014971,2]
[419666114,1775266234738,-8545.70660444,0.0001498,2]
[419666115,1775266234749,-150.0,0.00015,2]
[419666116,1775266234759,-300.0,0.00015,2]
[419666117,1775266234770,-150.0,0.00015067,2]
[419666118,1775266234781,-197.55,0.00015068,2]
[419666119,1775266234791,-150.0,0.00015086,2]
[419666120,1775266234801,-150.0,0.00015086,2]
[419666121,1775266234811,-150.0,0.000151,2]
[419666122,1775266234822,-163.46,0.00015175,2]
[419666123,1775266234832,-150.0,0.000152,2]
[419666124,1775266234843,-150.0,0.000152,2]
[419666125,1775266234853,-150.0,0.000152,2]
[419666126,1775266234864,-150.0,0.000152,2]
[419666127,1775266234875,-150.0,0.000152,2]
[419666128,1775266234885,-150.0,0.000152,2]
[419666129,1775266234895,-150.0,0.000152,2]
[419666130,1775266234905,-150.0,0.000152,2]
[419666131,1775266234916,-8545.70660444,0.00015204,2]
[419666132,1775266234927,-15647.76,0.00015243,2]
[419666133,1775266234938,-7989.28236517,0.00015279,2]
[419666134,1775266234948,-4573.48923256,0.00015279,2]
[419666135,1775266234958,-209.06011069,0.00015279,2]
[419666136,1775266234968,-4911.26183216,0.00015279,2]
[419666137,1775266234980,-508.48906332,0.000153,2]
[419666138,1775266234990,-150.0,0.000153,2]
[419666139,1775266234999,-150.0,0.00015314,2]
[419666140,1775266235009,-150.0,0.00015314,2]
[419666141,1775266235021,-150.0,0.00015333,2]
[419666142,1775266235031,-694.63440987,0.00015365,2]
[419666143,1775266235041,-500.0,0.00015373,2]
[419666144,1775266235051,-418.56315304,0.00015373,2]
[419666145,1775266235062,-500.0,0.00015373,2]
[419666146,1775266235072,-500.0,0.00015373,2]
[419666147,1775266235083,-500.44640306,0.00015373,2]
[419666148,1775266235093,-500.0,0.00015373,2]
[419666149,1775266235103,-500.0,0.00015373,2]
[419666150,1775266235112,-167.59132861,0.00015373,2]
[419666151,1775266235123,-500.0,0.00015373,2]
[419666152,1775266235133,-500.0,0.00015374,2]
[419666153,1775266235148,-500.0,0.00015374,2]
[419666154,1775266235159,-500.0,0.00015374,2]
[419666155,1775266235170,-500.0,0.00015374,2]
[419666156,1775266235181,-500.0,0.00015374,2]
[419666157,1775266235192,-500.0,0.00015374,2]
[419666158,1775266235203,-500.0,0.00015374,2]
[419666159,1775266235214,-500.0,0.00015374,2]
[419666160,1775266235225,-500.0,0.00015374,2]
[419666161,1775266235236,-500.0,0.00015374,2]
[419666162,1775266235248,-500.0,0.00015374,2]
[419666163,1775266235258,-500.0,0.00015374,2]
[419666164,1775266235268,-500.0,0.00015374,2]
[419666165,1775266235279,-500.0,0.00015374,2]
[419666166,1775266235290,-500.0,0.00015374,2]
[419666167,1775266235301,-500.0,0.00015374,2]
[419666168,1775266235312,-500.0,0.00015374,2]
[419666169,1775266235324,-500.0,0.00015374,2]
[419666170,1775266235334,-500.0,0.00015374,2]
[419666171,1775266235345,-500.0,0.00015374,2]
[419666172,1775266235355,-500.0,0.00015374,2]
[419666173,1775266235366,-500.0,0.00015374,2]
[419666174,1775266235376,-500.0,0.00015374,2]
[419666175,1775266235386,-500.0,0.00015374,2]
[419666176,1775266235396,-500.0,0.00015374,2]
[419666177,1775266235406,-500.0,0.00015374,2]
[419666178,1775266235416,-500.0,0.00015374,2]
[419666179,1775266235426,-528.6058004,0.00015374,2]
[419666180,1775266235436,-670902.21859347,0.00015375,2]
[419666181,1775266235455,-82574.10080841,0.00015375,2]
[419666182,1775266235468,-153030.2247722,0.00015375,2]
[419666183,1775266238653,500.0,0.00010964,2]
[419666184,1775266238709,-535.41792625,0.00014751,2]
[419666185,1775266238721,-2226.45747354,0.00014751,2]
[419666186,1775266238733,-976.40954443,0.00014751,2]
[419666187,1775266238745,-3528.38932031,0.00014751,2]
[419666188,1775266238756,-250.18116235,0.00014751,2]
[419666189,1775266238814,-18425.20373603,0.00014751,2]
[419666190,1775266238824,-22820.13434251,0.00015125,2]
[419666191,1775266238837,-3121.9248204,0.00015125,2]
[419666192,1775266238847,-660.00397094,0.00015279,2]
[419666193,1775266238857,-459.6647615,0.00015375,2]
[419666194,1775266240766,-458.87313864,0.00015279,2]
[419666195,1775266241229,-1140.35844369,0.00015279,2]
[419666196,1775266241240,-1593033.79106442,0.00015375,2]
[419666197,1775266241251,-500.0,0.00015379,2]
[419666198,1775266241260,-273.54621608,0.00015379,2]
[419666199,1775266241270,-189.44715953,0.00015379,2]
[419666200,1775266241279,-469.27934966,0.00015379,2]
[419666201,1775266241288,-500.0,0.00015379,2]
[419666202,1775266241297,-366.71959166,0.00015379,2]
[419666203,1775266241306,-549.68728181,0.00015379,2]
[419666204,1775266241315,-505.84272161,0.00015379,2]
[419666205,1775266241324,-500.0,0.00015379,2]
[419666206,1775266241333,-500.0,0.00015379,2]
[419666207,1775266241343,-500.0,0.00015379,2]
[419666208,1775266241352,-500.0,0.00015379,2]
[419666209,1775266241362,-500.0,0.00015379,2]
[419666210,1775266241371,-500.0,0.00015379,2]
[419666211,1775266241381,-500.0,0.00015379,2]
[419666212,1775266241390,-260.65001187,0.00015379,2]
[419666213,1775266241400,-500.0,0.00015379,2]
[419666214,1775266241410,-500.0,0.00015379,2]
[419666215,1775266241419,-500.0,0.00015379,2]
[419666216,1775266241428,-552.53004255,0.00015379,2]
[419666217,1775266241437,-500.0,0.00015379,2]
[419666218,1775266241446,-500.0,0.00015379,2]
[419666219,1775266241455,-500.0,0.00015379,2]
[419666220,1775266241464,-500.0,0.00015379,2]
[419666221,1775266241473,-500.0,0.00015379,2]
[419666222,1775266241483,-500.0,0.00015379,2]
[419666223,1775266241492,-500.0,0.00015379,2]
[419666224,1775266241501,-350.1457064,0.00015379,2]
[419666225,1775266241511,-500.0,0.00015379,2]
[419666226,1775266241520,-500.0,0.00015379,2]
[419666227,1775266241529,-500.0,0.00015379,2]
[419666228,1775266241538,-500.0,0.00015379,2]
[419666229,1775266241548,-500.0,0.00015379,2]
[419666230,1775266241557,-500.0,0.00015379,2]
[419666231,1775266241566,-500.0,0.00015379,2]
[419666232,1775266241575,-500.0,0.00015379,2]
[419666233,1775266241584,-500.0,0.00015379,2]
[419666234,1775266241593,-500.0,0.00015379,2]
[419666235,1775266241602,-250.0,0.00015379,2]
[419666236,1775266241611,-500.0,0.00015379,2]
[419666237,1775266241620,-500.0,0.00015379,2]
[419666238,1775266241630,-500.0,0.00015379,2]
[419666240,1775266241639,-500.0,0.00015379,2]
[419666241,1775266241648,-500.0,0.00015379,2]
[419666242,1775266241657,-500.0,0.00015379,2]
[419666243,1775266241666,-500.0,0.00015379,2]
[419666244,1775266241675,-500.0,0.00015379,2]
[419666245,1775266241684,-500.0,0.00015379,2]
[419666246,1775266241693,-350.0,0.00015379,2]
[419666247,1775266241703,-500.0,0.00015379,2]
[419666248,1775266241712,-500.0,0.00015379,2]
[419666249,1775266241721,-166.66,0.000154,2]
[419666250,1775266241730,-150.0,0.000154,2]
[419666251,1775266241740,-8545.70660444,0.00015427,2]
[419666252,1775266241749,-150.0,0.00015429,2]
[419666253,1775266241758,-150.0,0.00015467,2]
[419666254,1775266241768,-150.0,0.000155,2]
[419666255,1775266241777,-150.0,0.00015543,2]
[419666256,1775266241786,-150.0,0.00015543,2]
[419666257,1775266241796,-150.0,0.000156,2]
[419666258,1775266241805,-150.0,0.000156,2]
[419666259,1775266241814,-8545.70660444,0.00015651,2]
[419666260,1775266241823,-150.0,0.00015657,2]
[419666261,1775266241832,-150.0,0.000157,2]
[419666262,1775266241841,-150.0,0.00015733,2]
[419666263,1775266241850,-1600.0,0.00015771,2]
[419666264,1775266241859,-150.0,0.00015771,2]
[419666265,1775266241868,-150.0,0.00015771,2]
[419666266,1775266241877,-163.46,0.00015782,2]
[419666267,1775266241886,-10000.0,0.000158,2]
[419666268,1775266241895,-150.0,0.000158,2]
[419666269,1775266241904,-1500.0,0.000158,5]
[419666270,1775266241913,-150.0,0.00015867,2]
[419666271,1775266241922,-500.0,0.00015873,2]
[419666272,1775266241931,-501.2731718,0.00015873,2]
[419666273,1775266241940,-387.6231554,0.00015873,2]
[419666274,1775266241949,-500.0,0.00015873,2]
[419666275,1775266241958,-500.38401516,0.00015873,2]
[419666276,1775266241967,-390.31346696,0.00015873,2]
[419666277,1775266241976,-500.0,0.00015873,2]
[419666278,1775266241985,-162.50429034,0.00015873,2]
[419666279,1775266241994,-501.35320755,0.00015873,2]
[419666280,1775266242003,-500.0,0.00015873,2]
[419666281,1775266242012,-500.0,0.00015873,2]
[419666282,1775266242021,-500.0,0.00015873,2]
[419666283,1775266242032,-500.0,0.00015873,2]
[419666284,1775266242042,-500.30149331,0.00015873,2]
[419666285,1775266242051,-500.78770604,0.00015873,2]
[419666286,1775266242060,-500.0,0.00015873,2]
[419666287,1775266242069,-500.0,0.00015873,2]
[419666288,1775266242078,-500.0,0.00015873,2]
[419666289,1775266242087,-500.0,0.00015873,2]
[419666290,1775266242097,-527.58662996,0.00015873,2]
[419666291,1775266242106,-500.0,0.00015873,2]
[419666292,1775266242115,-500.50490882,0.00015873,2]
[419666293,1775266242125,-500.0,0.00015873,2]
[419666294,1775266242136,-8545.70660444,0.00015875,2]
[419666295,1775266242146,-150.0,0.00015886,2]
[419666296,1775266242156,-694.63440987,0.0001589,2]
[419666297,1775266242166,-166.66,0.00015892,2]
[419666298,1775266242175,-177.714,0.00015899,2]
[419666299,1775266242184,-500.0,0.00015899,2]
[419666300,1775266242193,-500.0,0.00015899,2]
[419666301,1775266242203,-500.0,0.00015899,2]
[419666302,1775266242213,-500.0,0.00015899,2]
[419666303,1775266242223,-500.0,0.00015899,2]
[419666304,1775266242233,-453.4,0.00015899,2]
[419666305,1775266242243,-500.0,0.00015899,2]
[419666306,1775266242253,-500.0,0.00015899,2]
[419666307,1775266242263,-500.0,0.00015899,2]
[419666308,1775266242272,-500.0,0.00015899,2]
[419666309,1775266242281,-649.06701174,0.00015899,2]
[419666310,1775266242290,-33024.725,0.000159,2]
[419666311,1775266242299,-1000.0,0.000159,2]
[419666312,1775266242309,-5000.0,0.000159,2]
[419666313,1775266242318,-1168086.85498566,0.000159,2]
[419666314,1775266242373,-1146.36127367,0.000159,2]
[419666315,1775266242384,-272.24010028,0.000159,2]
[419666316,1775266242455,-117.3132936,0.000159,2]
[419666444,1775266246750,-11700.8188,0.00012502,2]
[419666445,1775266246759,-7892.6688573,0.000155,2]
[419666446,1775266246933,-834.90166488,0.000155,2]
[419666447,1775266247212,-2795.57235272,0.000155,2]
[419666452,1775266259622,5495.92735478,0.00010986,2]
[419666453,1775266259649,10000.01,0.00010986,2]
[419666454,1775266259674,10000.01,0.00010986,2]
[419666455,1775266259699,10000.01,0.00010986,2]
[419666456,1775266259724,10000.01,0.00010986,2]
[419666457,1775266259749,10000.01,0.00010986,2]
[419666458,1775266259774,10000.01,0.00010986,2]
[419666459,1775266259801,10000.01,0.00010986,2]
[419666460,1775266259826,10000.01,0.00010986,2]
[419666461,1775266259851,10000.01,0.00010986,2]
[419666463,1775266263284,-300.0,0.00010985,2]
[419666464,1775266263786,-3978.5238289,0.00010986,2]
[419666465,1775266263917,-10000.01,0.00010986,2]
[419666466,1775266264067,-10000.01,0.00010986,2]
[419666467,1775266264201,-10000.01,0.00010986,2]
[419666493,1775266788042,10000.01,0.000107,2]
[419666494,1775266788396,10000.01,0.000107,2]
[419666495,1775266788422,10000.01,0.000107,2]
[419666496,1775266788445,10000.01,0.000107,2]
[419666497,1775266788467,10000.01,0.000107,2]
[419666498,1775266788490,10000.01,0.000107,2]
[419666499,1775266788514,10000.01,0.000107,2]
[419666500,1775266788537,10000.01,0.000107,2]
[419666501,1775266788559,10000.01,0.000107,2]
[419666502,1775266788583,10000.01,0.000107,2]
[419666503,1775266793164,-500.0,0.00010449,2]
[419666504,1775266796162,-9000.01,0.000107,2]
[419666505,1775266796277,-10000.01,0.000107,2]
[419666506,1775266796399,-10000.01,0.000107,2]
[419666507,1775266796795,-10000.01,0.000107,2]
[419666508,1775266796844,-1449.23022367,0.000107,2]
[419666509,1775266796881,-2898.46044734,0.000107,2]
[419666510,1775266796932,-4203.08910532,0.000107,2]
[419666518,1775267078691,531.89840286,0.00016101,120]
[419666519,1775267228575,10000.01,0.0001051,2]
[419666520,1775267228598,4002.29,0.0001051,2]
[419666521,1775267246466,500.0,0.00010705,2]
[419666522,1775267246566,500.0,0.00010705,2]
[419666523,1775267246963,500.0,0.00010705,2]
[419666524,1775267247113,500.0,0.00010705,2]
[419666525,1775267247286,500.0,0.00010705,2]
[419666526,1775267247433,500.0,0.00010705,2]
[419666527,1775267247585,500.0,0.00010705,2]
[419666528,1775267247745,300.40994394,0.00010705,2]
[419666529,1775267248813,500.0,0.00010705,2]
[419666530,1775267248982,500.0,0.00010705,2]
[419666531,1775267249144,500.0,0.00010705,2]
[419666532,1775267249300,500.0,0.00010705,2]
[419666533,1775267249459,500.0,0.00010705,2]
[419666534,1775267249620,500.0,0.00010705,2]
[419666535,1775267249777,500.0,0.00010705,2]
[419666536,1775267249948,504.52941329,0.00010705,2]
[419666538,1775267334079,171.85,8.282e-05,2]
[419666540,1775267407878,4431.25812319,0.00010687,2]
[419666551,1775267432577,-351.38926421,0.00010776,2]
[419666552,1775267432586,-250.0,0.00010776,2]
[419666553,1775267432595,-575.0,0.00010785,2]
[419666554,1775267432605,-412.7299957,0.00010785,2]
[419666555,1775267432614,-191.85179977,0.00010785,2]
[419666556,1775267432623,-500.0,0.00010785,2]
[419666557,1775267432633,-500.0,0.00010785,2]
[419666558,1775267432642,-500.0,0.00010785,2]
[419666559,1775267432651,-500.0,0.00010785,2]
[419666560,1775267432661,-500.0,0.00010785,2]
[419666561,1775267432670,-567.71724744,0.00010785,2]
[419666562,1775267432680,-500.0,0.00010785,2]
[419666563,1775267432689,-500.0,0.00010785,2]
[419666564,1775267432698,-500.0,0.00010785,2]
[419666565,1775267432709,-180.79408372,0.00010785,2]
[419666567,1775267432718,-500.0,0.00010785,2]
[419666569,1775267432727,-500.0,0.00010785,2]
[419666570,1775267432737,-1670097.58073894,0.00010786,2]
[419666572,1775267432748,-127606.22048265,0.00010786,2]
[419666574,1775267432759,-67884.08332317,0.00010786,2]
[419666576,1775267432770,-219625.29427151,0.00010786,2]
[419666578,1775267432781,-1254.41808677,0.00010786,2]
[419666608,1775267438545,-238.58458219,0.00010785,2]
[419666609,1775267438555,-474.92352553,0.00010785,2]
[419666610,1775267438567,-25.07647447,0.00010785,2]
[419666611,1775267438576,-500.0,0.00010785,2]
[419666612,1775267438588,-2847.8072681,0.00010786,2]
[419666613,1775267438601,-1865.60076518,0.00010786,2]
[419666614,1775267438623,-8051.26806205,0.00010786,2]
[419666615,1775267438634,-11693.11092757,0.00010786,2]
[419666616,1775267438646,-7493.54308078,0.00010786,2]
[419666661,1775267441039,-1271.86348119,0.00010786,2]
[419666662,1775267441081,-15931.94986734,0.00010786,2]
[419666663,1775267441550,-44959.74811443,0.00010786,2]
[419666689,1775267443478,-18667.9036742,0.00010786,2]
[419666690,1775267443490,-350.31673489,0.00010786,2]
[419666691,1775267443502,-11070.18875481,0.00010786,2]
[419666692,1775267443776,-256.88079652,0.00010786,2]
[419666693,1775267443800,-839.89768059,0.00010786,2]
[419666694,1775267443888,-229377.97585896,0.00010786,2]
[419666695,1775267443998,-4694.93067227,0.00010786,2]
[419666696,1775267444010,-887.00102635,0.00010786,2]
[419666697,1775267444022,-28317.94597248,0.00010786,2]
[419666698,1775267444033,-989.29856,0.00010786,2]
[419666741,1775267446369,-239.48662477,0.00010785,2]
[419666742,1775267446379,-251.77028504,0.00010786,2]
[419666743,1775267446772,-12852.35667256,0.00010786,2]
[419666786,1775267536822,1000.0,0.00010686,2]
[419666787,1775267555348,2500.0,0.00010686,2]
[419666788,1775267566159,170.009,0.00016101,120]
[419666789,1775267593438,1896.90187681,0.00010686,2]
[419666790,1775267593465,10000.01,0.00010686,2]
[419666791,1775267593491,10000.01,0.00010686,2]
[419666792,1775267593518,10000.01,0.00010686,2]
[419666793,1775267593544,10000.01,0.00010686,2]
[419666794,1775267593571,10000.01,0.00010686,2]
[419666795,1775267593597,10000.01,0.00010686,2]
[419666796,1775267593622,10000.01,0.00010686,2]
[419666797,1775267593651,10000.01,0.00010686,2]
[419666798,1775267593677,10000.01,0.00010686,2]
[419666802,1775267700159,-500.0,0.00010676,2]
[419666803,1775267700191,-150.0,0.00010685,2]
[419666804,1775267700220,-250.0,0.00010686,2]
[419666805,1775267730633,-7554.1951508,0.00010686,2]
[419666806,1775267733703,-10000.01,0.00010686,2]
[419666807,1775267739737,-10000.01,0.00010686,2]
[419666808,1775267739837,-10000.01,0.00010686,2]
[419666809,1775267745768,-10000.01,0.00010686,2]
[419666810,1775267745880,-10000.01,0.00010686,2]
[419666818,1775268040206,2500.0,0.00010586,2]
[419666821,1775268169901,4150.5116,0.00010586,2]
[419666822,1775268197185,3349.4984,0.00010586,2]
[419666823,1775268197209,10000.01,0.00010586,2]
[419666824,1775268197232,10000.01,0.00010586,2]
[419666825,1775268197255,10000.01,0.00010586,2]
[419666826,1775268212816,-1852.42,0.00010528,2]
[419666827,1775268222619,748.25,0.00010528,2]
[419666828,1775268449781,150.0,0.00011233,120]
[419666829,1775268459682,5546.92,8e-05,2]
[419666830,1775268459704,10000.01,8e-05,2]
[419666831,1775268459727,8188.53788944,8e-05,2]
[419666832,1775268466354,1811.47211056,0.00010486,2]
[419666833,1775268466380,10000.01,0.00010486,2]
[419666834,1775268466405,10000.01,0.00010486,2]
[419666835,1775268466430,10000.01,0.00010486,2]
[419666836,1775268466454,10000.01,0.00010486,2]
[419666837,1775268466480,10000.01,0.00010486,2]
[419666838,1775268466505,10000.01,0.00010486,2]
[419666839,1775268466529,10000.01,0.00010486,2]
[419666840,1775268477610,-200.0,9.8e-05,3]
[419666841,1775268477642,-400.0,9.9e-05,3]
[419666842,1775268480647,-700.0,0.0001,3]
[419666843,1775268481103,-1104.84,0.00010486,2]
[419666844,1775268481360,-10000.01,0.00010486,2]
[419666845,1775268481470,-10000.01,0.00010486,2]
[419666846,1775268481613,-10000.01,0.00010486,2]
[419666847,1775268534021,267.569,0.000106,120]
[419666848,1775268536931,-261.61695451,0.000101,2]
[419666849,1775268551153,-956.19418023,0.00010386,2]
[419666850,1775268551909,-1200.0,0.00010485,2]
[419666851,1775268551938,-150.0,0.00010485,2]
[419666852,1775268558103,-38870.95814,0.00010486,2]
[419666854,1775268561131,-39143.34424,0.00010486,2]
[419666855,1775268567323,-500.0,0.00010485,2]
[419666856,1775268567366,-9000.01,0.00010486,2]
[419666857,1775268567536,-10000.01,0.00010486,2]
[419666858,1775268567660,-10000.01,0.00010486,2]
[419666859,1775268567756,-10000.01,0.00010486,2]
[419666860,1775268567849,-10000.01,0.00010486,2]
[419666861,1775268569580,-7203.449526,0.00010486,2]
[419666862,1775268575354,-10000.01,0.00010486,2]
[419666863,1775268575466,-10000.01,0.00010486,2]
[419666864,1775268575566,-10000.01,0.00010486,2]
[419666865,1775268575650,-10000.01,0.00010486,2]
[419666866,1775268575760,-10000.01,0.00010486,2]
[419666867,1775268585883,191.24,9.975e-05,2]
[419666870,1775268603496,1977.52447804,0.0001,2]
[419666871,1775268606662,184.0,9.975e-05,3]
[419666872,1775268608245,1013.904775,7.945e-05,2]
[419666873,1775268609077,3802.105225,0.00010386,2]
[419666874,1775268609100,504.97934962,0.00010386,2]
[419666876,1775268610307,4495.03065038,0.00010466,2]
[419666877,1775268610330,5000.01,0.00010466,2]
[419666878,1775268610352,5000.01,0.00010466,2]
[419666880,1775268612089,-5000.01,0.00010466,2]
[419666881,1775268612100,-5000.01,0.00010466,2]
[419666882,1775268612111,-5000.01,0.00010466,2]
[419666883,1775268612133,-5000.01,0.00010466,2]
[419666885,1775268614591,-5000.01,0.00010466,2]
[419666886,1775268614772,-5000.01,0.00010466,2]
[419666887,1775268614896,-2184.88934962,0.00010466,2]
[419666888,1775268614924,-234.25950948,0.00010476,2]
[419666889,1775268614944,-385.84390098,0.00010485,2]
[419666890,1775268614953,-300.0,0.00010485,2]
[419666891,1775268614963,-1200.0,0.00010485,2]
[419666892,1775268614973,-299.04544864,0.00010485,2]
[419666893,1775268614996,-234.25950948,0.00010485,2]
[419666894,1775268615052,-161.7122818,0.00010485,2]
[419666895,1775268615133,-40.26619017,0.00010485,2]
[419666896,1775268615165,-735.28343009,0.00010485,2]
[419666897,1775268615195,-302.0,0.00010486,2]
[419666898,1775268615225,-1216.52671213,0.00010486,2]
[419666899,1775268615243,-40.26619017,0.00010486,2]
[419666900,1775268615269,-735.28343009,0.00010486,2]
[419666901,1775268615283,-302.0,0.00010486,2]
[419666902,1775268615302,-1216.52671213,0.00010486,2]
[419666903,1775268615323,-411.85733522,0.00010486,2]
[419666904,1775268615333,-5000.01,0.00010486,2]
[419666905,1775268615384,-5000.01,0.00010486,2]
[419666906,1775268615514,-5000.01,0.00010486,2]
[419666907,1775268617471,-5000.01,0.00010486,2]
[419666908,1775268617594,-5000.01,0.00010486,2]
[419666910,1775268617694,-5000.01,0.00010486,2]
[419666911,1775268617841,-5000.01,0.00010486,2]
[419666912,1775268617947,-5000.01,0.00010486,2]
[419666913,1775268618048,-5000.01,0.00010486,2]
[419666914,1775268618183,-5000.01,0.00010486,2]
[419666915,1775268620792,-5000.01,0.00010486,2]
[419666916,1775268621014,-5000.01,0.00010486,2]
[419666917,1775268621129,-5000.01,0.00010486,2]